[Event "BL 2016-17"]
[Site "St. Veit/Glan"]
[Date "2017.03.26"]
[Round "8"]
[White "Handler, Lukas"]
[Black "Hiebler, Laura"]
[Result "1-0"]
[ECO "A05"]
[WhiteElo "2377"]
[BlackElo "2025"]
[Annotator "NA"]
[PlyCount "71"]
[EventDate "2017.??.??"]
[EventType "team-tourn"]
[EventCountry "AUT"]
[SourceTitle "playchess.com"]
[Source "ChessBase"]
[SourceQuality "1"]
[WhiteTeam "Maria Saal"]
[BlackTeam "St. Veit"]
[TimeControl "40/5400+30:1800+30"]

1. Nf3 {[%emt 0:00:00]} Nf6 {[%emt 0:00:13]} 2. g3 {[%emt 0:00:00]} b6 {[%emt 0:01:33]} 3. Bg2 {[%emt 0:00:40]} Bb7 {[%emt 0:00:09]} 4. O-O {[%emt 0:00:26]} e6 {[%emt 0:03:20]} 5. c4 {[%emt 0:01:33]} c5 {[%emt 0:08:24]} 6. b3 {[%emt 0:01:35]} Be7 {[%emt 0:02:08]} 7. Bb2 {[%emt 0:00:12]} O-O {[%emt 0:01:48]} 8. e3 {[%emt 0:00:16]} Nc6 9. Qe2 {[%emt 0:03:57] LiveBook: 22 Games} d5 {[%emt 0:12:50]} 10. d3 {[%emt 0:01:50]} Rc8 {[%emt 0:10:41]} 11. Nc3 {[%emt 0:04:50]} a6 {[%emt 0:07:36]} 12. Rac1 {[%emt 0:04:28] A14: English Opening: 1...e6 with b3 by White} Qc7 {[%emt 0:03:13]} 13. cxd5 {[%emt 0:10:12]} exd5 {[%emt 0:02:51]} 14. Rfd1 {[%emt 0:00:27]} b5 {[%emt 0:09:06]} 15. e4 {[%emt 0:07:00]} d4 $146 {[%emt 0:05:43]} (15... Rfe8 $1 $11 {keeps the balance.}) 16. Nd5 {[%emt 0:10:49]} Nxd5 {[%emt 0:04:11]} 17. exd5 {[%emt 0:00:10]} Nb4 {[%emt 0:01:05] [#]} 18. Nxd4 $16 {[%emt 0:00:29]} Qd7 {[%emt 0:04:14]} 19. d6 {[%emt 0:09:49] ½-½ (51) McNab,C (2463)-McClement,A (2022) Hamilton 2010} Bf6 {[%emt 0:08:48]} 20. Bxb7 {[%emt 0:03:47]} Rb8 {[%emt 0:03:46]} 21. Bg2 {[%emt 0:02:43]} cxd4 {[%emt 0:01:35]} 22. a3 {[%emt 0:07:49]} Na2 {[%emt 0:00:08]} 23. Rc6 {[%emt 0:00:42]} Nc3 {[%emt 0:04:48]} 24. Bxc3 {[%emt 0:00:35]} dxc3 {[%emt 0:00:05]} 25. Rxa6 {[%emt 0:00:39]} b4 {[%emt 0:00:25]} 26. Bd5 {[%emt 0:14:17]} bxa3 {[%emt 0:01:04]} 27. Qa2 {[%emt 0:02:45]} Bd4 {[%emt 0:00:41]} 28. Rc1 {[%emt 0:02:13]} Rfc8 {[%emt 0:01:48]} 29. Rxa3 {[%emt 0:02:33]} Qxd6 {[%emt 0:00:35]} 30. Bc4 {[%emt 0:00:35]} Rc7 {[%emt 0:00:43]} 31. Ra8 {[%emt 0:00:48]} Rcb7 {[%emt 0:00:24]} 32. Re1 {[%emt 0:01:02]} Rxa8 {[%emt 0:00:53]} 33. Qxa8+ {[%emt 0:00:11]} Rb8 {[%emt 0:00:08]} 34. Re8+ {[%emt 0:00:42]} Rxe8 {[%emt 0:00:01]} 35. Qxe8+ {[%emt 0:00:06]} Qf8 {[%emt 0:00:02]} 36. Bxf7+ {[%emt 0:00:07]} 1-0

[Event "BL 2016-17"]
[Site "Germany"]
[Date "2017.02.19"]
[Round "8"]
[White "Muse, Drazen"]
[Black "Spitzl, Vinzent"]
[Result "1/2-1/2"]
[ECO "E52"]
[WhiteElo "2355"]
[BlackElo "2210"]
[Annotator "NA"]
[PlyCount "158"]
[EventDate "2017.??.??"]
[EventType "team-tourn"]
[EventCountry "GER"]
[TimeControl "40/6000+30:3000+30"]

1. d4 {[%emt 0:00:00]} d5 {[%emt 0:00:10]} 2. c4 {[%emt 0:00:04]} e6 {[%emt 0:00:10]} 3. Nf3 {[%emt 0:00:07]} Nf6 {[%emt 0:00:53]} 4. Nc3 {[%emt 0:00:12]} Bb4 {[%emt 0:00:43]} 5. e3 {[%emt 0:02:20]} O-O {[%emt 0:01:35]} 6. Bd3 {[%emt 0:01:46]} b6 {[%emt 0:02:31]} 7. O-O {[%emt 0:01:05]} Bb7 {[%emt 0:04:18]} 8. cxd5 {[%emt 0:00:23]} exd5 {[%emt 0:04:23]} 9. a3 {[%emt 0:04:24]} Bxc3 {[%emt 0:08:09]} 10. bxc3 {[%emt 0:02:35]} Ba6 {[%emt 0:03:09]} 11. Bxa6 {[%emt 0:03:19]} Nxa6 {[%emt 0:00:02]} 12. Qa4 {[%emt 0:00:36]} Qc8 {[%emt 0:05:55]} 13. c4 {[%emt 0:00:49]} c5 {[%emt 0:04:09]} 14. cxd5 {[%emt 0:00:20]} cxd4 {[%emt 0:08:35]} 15. Qxd4 {[%emt 0:01:20]} Qc5 {[%emt 0:02:31]} 16. Qd3 {[%emt 0:01:26]} b5 {[%emt 0:06:26]} 17. e4 {[%emt 0:07:34]} Qc4 {[%emt 0:01:57]} 18. Qxc4 {[%emt 0:00:04]} bxc4 {[%emt 0:00:18]} 19. Ne5 {[%emt 0:00:02]} Nxe4 {[%emt 0:01:51]} 20. Nxc4 {[%emt 0:02:17]} Rfd8 {[%emt 0:10:06]} 21. Be3 {[%emt 0:03:32]} Rxd5 {[%emt 0:04:13]} 22. Rfd1 {[%emt 0:04:06]} Nc3 {[%emt 0:03:10]} 23. Rxd5 {[%emt 0:02:38]} Nxd5 {[%emt 0:00:03]} 24. Bd4 {[%emt 0:00:23]} Nac7 {[%emt 0:01:30]} 25. Rd1 {[%emt 0:00:43]} h6 {[%emt 0:03:30]} 26. g3 {[%emt 0:01:31]} a6 {[%emt 0:04:45]} 27. Nd6 {[%emt 0:04:14]} Nb5 {[%emt 0:04:09]} 28. Nxb5 {[%emt 0:02:52]} axb5 {[%emt 0:00:13]} 29. Bxg7 {[%emt 0:00:13]} Kxg7 {[%emt 0:00:39]} 30. Rxd5 {[%emt 0:00:04]} Rxa3 {[%emt 0:00:09]} 31. Rxb5 {[%emt 0:00:02]} Kg6 {[%emt 0:00:45]} 32. Kg2 {[%emt 0:00:42]} h5 {[%emt 0:03:06]} 33. Rb4 {[%emt 0:01:31]} f6 {[%emt 0:01:47]} 34. Rf4 {[%emt 0:00:55]} Rb3 {[%emt 0:01:16]} 35. Kh3 {[%emt 0:00:17]} Kg5 {[%emt 0:01:37]} 36. Ra4 {[%emt 0:00:14]} Rb2 {[%emt 0:01:05]} 37. f4+ {[%emt 0:10:27]} Kg6 {[%emt 0:01:21]} 38. Ra1 {[%emt 0:00:10]} Rf2 {[%emt 0:10:49]} 39. Rh1 {[%emt 0:00:17]} Kh6 {[%emt 0:03:08]} 40. Kh4 {[%emt 0:00:12]} Kg6 {[%emt 0:50:27]} 41. h3 {[%emt 0:50:07]} Ra2 {[%emt 0:00:45]} 42. Rb1 {[%emt 0:00:07]} Ra5 {[%emt 0:00:20]} 43. Rb8 {[%emt 0:00:11]} Rf5 {[%emt 0:00:00]} 44. Rg8+ {[%emt 0:00:00]} Kh7 {[%emt 0:00:00]} 45. Ra8 {[%emt 0:00:00]} Kg6 {[%emt 0:00:00]} 46. Ra6 {[%emt 0:00:00]} Kh6 {[%emt 0:00:00]} 47. Ra4 {[%emt 0:00:00]} Rb5 {[%emt 0:00:00]} 48. Ra6 {[%emt 0:00:00]} Rf5 {[%emt 0:00:00]} 49. Ra4 {[%emt 0:00:00]} Rb5 {[%emt 0:00:00]} 50. g4 {[%emt 0:00:00]} hxg4 {[%emt 0:00:00]} 51. hxg4 {[%emt 0:00:00]} Rb1 {[%emt 0:00:00]} 52. Ra6 {[%emt 0:00:00]} Kg7 {[%emt 0:00:00]} 53. Rd6 {[%emt 0:00:00]} Ra1 {[%emt 0:00:00]} 54. Kg3 {[%emt 0:00:00]} Ra3+ {[%emt 0:00:00]} 55. Kf2 {[%emt 0:00:00]} Rb3 {[%emt 0:00:00]} 56. Re6 {[%emt 0:00:00]} Kf7 {[%emt 0:00:00]} 57. Ra6 {[%emt 0:00:00]} Kg7 {[%emt 0:00:00]} 58. Re6 {[%emt 0:00:00]} Kf7 {[%emt 0:00:00]} 59. f5 {[%emt 0:00:00]} Kg7 {[%emt 0:00:00]} 60. Re3 {[%emt 0:00:00]} Rb7 {[%emt 0:00:00]} 61. Kg3 {[%emt 0:00:00]} Ra7 {[%emt 0:00:00]} 62. Kh4 {[%emt 0:00:00]} Kf7 {[%emt 0:00:00]} 63. Rb3 {[%emt 0:00:00]} Rc7 {[%emt 0:00:00]} 64. Kh5 {[%emt 0:00:00]} Kg7 {[%emt 0:00:00]} 65. Rb6 {[%emt 0:00:00]} Ra7 {[%emt 0:00:00]} 66. g5 {[%emt 0:00:00]} fxg5 {[%emt 0:00:00]} 67. Kxg5 {[%emt 0:00:00]} Kf7 {[%emt 0:01:50]} 68. Rf6+ {[%emt 0:00:00]} Kg7 {[%emt 0:00:56]} 69. Rg6+ {[%emt 0:00:00]} Kf7 {[%emt 0:00:33]} 70. Rh6 {[%emt 0:00:00]} Ra1 {[%emt 0:00:37]} 71. Rh7+ {[%emt 0:00:00]} Kg8 {[%emt 0:00:21]} 72. Rb7 {[%emt 0:00:00]} Ra6 {[%emt 0:00:11]} 73. Rc7 {[%emt 0:00:00]} Kf8 {[%emt 0:00:37]} 74. Rh7 {[%emt 0:00:00]} Kg8 {[%emt 0:00:31]} 75. Re7 {[%emt 0:00:00]} Kf8 $11 {[%emt 0:00:28]} 76. Re4 {[%emt 0:00:00]} Kf7 {[%emt 0:00:50]} 77. Rc4 {[%emt 0:00:00]} Rb6 {[%emt 0:00:53]} 78. Rc7+ {[%emt 0:00:00]} Kf8 {[%emt 0:00:05]} 79. Rd7 {[%emt 0:00:00]} Ra6 {[%emt 0:00:39]} 1/2-1/2

[Event "BL 2016-17"]
[Site "St. Veit/Glan"]
[Date "2017.03.26"]
[Round "8"]
[White "Baenziger, Fabian"]
[Black "Kvetny, Mark"]
[Result "1-0"]
[ECO "D30"]
[WhiteElo "2341"]
[BlackElo "2372"]
[Annotator "ChessBase"]
[PlyCount "87"]
[EventDate "2017.??.??"]
[EventType "team-tourn"]
[EventCountry "AUT"]
[SourceTitle "playchess.com"]
[Source "ChessBase"]
[SourceQuality "1"]
[BlackTeam "Götzis"]
[TimeControl "40/5400+30:1800+30"]

1. d4 {[%emt 0:00:00]} d5 {[%emt 0:00:14]} 2. c4 {[%emt 0:00:58]} e6 {[%emt 0:00:17]} 3. Nf3 {[%emt 0:00:35]} dxc4 {[%emt 0:00:24]} 4. Nc3 {[%emt 0:04:39]} a6 {[%emt 0:02:58]} 5. a4 {[%emt 0:01:30]} Nc6 {[%emt 0:05:16]} 6. e4 {[%emt 0:09:49]} Na5 {[%emt 0:00:53]} 7. Be3 {[%emt 0:00:49]} Nf6 {[%emt 0:05:24]} 8. Nd2 {[%emt 0:04:35]} Bb4 {[%emt 0:10:17]} 9. f3 {[%emt 0:00:50]} c5 {[%emt 0:03:53]} 10. Nxc4 {[%emt 0:05:05]} cxd4 {[%emt 0:06:53]} 11. Bxd4 {[%emt 0:01:07]} Nxc4 {[%emt 0:03:31]} 12. Bxc4 {[%emt 0:00:06]} Qc7 {[%emt 0:00:26]} 13. Qe2 {[%emt 0:13:27]} e5 {[%emt 0:04:31]} 14. Be3 {[%emt 0:02:32]} Bxc3+ 15. bxc3 {[%emt 0:00:13]} Bd7 {[%emt 0:09:06]} 16. O-O {[%emt 0:02:08]} Rc8 {[%emt 0:01:37]} 17. Bd3 {[%emt 0:00:07]} Be6 {[%emt 0:09:02]} 18. Rab1 {[%emt 0:02:44]} O-O {[%emt 0:03:11]} 19. Rfc1 {[%emt 0:02:47]} Nd7 {[%emt 0:01:13]} 20. Qf2 {[%emt 0:00:06]} Qc6 {[%emt 0:05:59]} 21. c4 {[%emt 0:05:44]} Rc7 {[%emt 0:04:47]} 22. a5 {[%emt 0:01:14]} Rfc8 {[%emt 0:01:22]} 23. f4 {[%emt 0:11:00]} f6 {[%emt 0:02:14]} 24. f5 {[%emt 0:05:20]} Bf7 {[%emt 0:00:09]} 25. c5 {[%emt 0:00:04]} Qa4 {[%emt 0:02:41]} 26. Rc2 {[%emt 0:03:20]} Qxa5 {[%emt 0:01:43]} 27. Rbc1 {[%emt 0:00:19]} Nb8 {[%emt 0:04:56]} 28. Rc3 {[%emt 0:05:29]} Qa4 {[%emt 0:02:53]} 29. g4 {[%emt 0:03:57]} Rd7 {[%emt 0:03:00]} 30. g5 {[%emt 0:00:53]} Rcd8 {[%emt 0:00:37]} 31. Qe2 {[%emt 0:02:29]} Nc6 {[%emt 0:02:44]} 32. gxf6 {[%emt 0:00:18]} gxf6 {[%emt 0:00:04]} 33. Kf2 {[%emt 0:02:52]} Kf8 {[%emt 0:00:44]} 34. Bc4 {[%emt 0:04:11]} Nd4 {[%emt 0:00:46]} 35. Qg4 {[%emt 0:01:40]} Re7 {[%emt 0:03:25]} 36. Qh4 {[%emt 0:03:55]} Bxc4 {[%emt 0:00:37]} 37. Qxf6+ {[%emt 0:00:01]} Ke8 {[%emt 0:00:33]} 38. Bg5 {[%emt 0:00:24]} Nc6 {[%emt 0:00:28]} 39. Rxc4 {[%emt 0:00:07]} Qa2+ 40. R1c2 {[%emt 0:00:00]} Qb1 {[%emt 0:00:54]} 41. Qh8+ {[%emt 0:01:26]} Kd7 {[%emt 0:00:53]} 42. Rd2+ {[%emt 0:00:05]} Kc7 {[%emt 0:01:14]} 43. Rxd8 {[%emt 0:00:20]} Qa2+ {[%emt 0:00:12]} 44. Rd2 {[%emt 0:00:16]} 1-0

[Event "BL 2016-17"]
[Site "St. Veit/Glan"]
[Date "2017.03.26"]
[Round "8"]
[White "Wallner, Joachim"]
[Black "Repkova, Eva"]
[Result "1/2-1/2"]
[ECO "A01"]
[WhiteElo "2322"]
[BlackElo "2328"]
[Annotator "NA"]
[PlyCount "64"]
[EventDate "2017.??.??"]
[EventType "team-tourn"]
[EventCountry "AUT"]
[SourceTitle "playchess.com"]
[Source "ChessBase"]
[SourceQuality "1"]
[WhiteTeam "Wulkaprodersdorf"]
[BlackTeam "Bregenz"]
[TimeControl "40/5400+30:1800+30"]

1. b3 {[%emt 0:00:00]} e5 {[%emt 0:01:59]} 2. Bb2 {[%emt 0:00:00]} Nc6 {[%emt 0:00:27]} 3. e3 {[%emt 0:00:06]} d5 {[%emt 0:02:20]} 4. Bb5 {[%emt 0:00:11]} f6 {[%emt 0:01:27]} 5. f4 {[%emt 0:07:39] A01: Nimzowitsch-Larsen Opening} (5. d4 e4 6. Be2 f5 7. c4 Nf6 8. Nc3 Be6 9. Nh3 Bf7 10. a3 h6 11. Nf4 Ne7 12. h4 c6 13. h5 {1-0 (33) Barbosa,O (2579)-Dzhumaev,M (2557) Bangkok 2014}) 5... exf4 {[%emt 0:01:53]} 6. exf4 {[%emt 0:00:04]} Qe7+ {[%emt 0:00:03]} 7. Qe2 {[%emt 0:01:22]} Bg4 $146 {[%emt 0:01:41]} (7... Bd7 8. Nc3 Qxe2+ 9. Ngxe2 Nge7 10. O-O-O a6 11. Bxc6 Bxc6 12. Nd4 Bd7 {½-½ (29) Dumpor,A (2404)-Bozanic,I (2270) Split 2010}) 8. Bxc6+ {[%emt 0:01:05]} bxc6 {[%emt 0:00:36]} 9. Qxe7+ {[%emt 0:00:18]} Bxe7 {[%emt 0:03:09]} 10. h3 {[%emt 0:05:45]} Bh5 {[%emt 0:02:32]} 11. Ne2 {[%emt 0:05:05]} Bd6 {[%emt 0:01:02]} 12. g4 {[%emt 0:00:23]} Bg6 {[%emt 0:00:23]} 13. d3 {[%emt 0:02:28]} ({White should try} 13. f5 $11 Bf7 14. Nbc3) 13... Kd7 {[%emt 0:03:17]} 14. Nd2 {[%emt 0:00:16]} ({Better is} 14. Nbc3 $11) 14... Re8 {[%emt 0:00:22]} 15. Kf2 {[%emt 0:01:06]} h5 {[%emt 0:00:59]} 16. Nf3 {[%emt 0:03:54]} Nh6 {[%emt 0:00:59]} 17. Nh4 {[%emt 0:05:34]} Bh7 {[%emt 0:02:51]} 18. gxh5 {[%emt 0:04:11]} Nf5 {[%emt 0:01:39]} 19. Nxf5 {[%emt 0:02:16]} Bxf5 {[%emt 0:00:09]} 20. Ng3 {[%emt 0:02:47]} Be6 {[%emt 0:00:40]} 21. Kf3 {[%emt 0:01:47]} d4 {[%emt 0:02:12]} 22. Rhg1 {[%emt 0:10:30]} c5 {[%emt 0:06:54]} ({But not} 22... Bxh3 23. Bxd4 c5 24. Bc3 $14) 23. Rae1 {[%emt 0:09:30]} Bxh3 {[%emt 0:03:38]} 24. Rxe8 {[%emt 0:00:56]} Rxe8 {[%emt 0:00:15]} 25. Ne4 {[%emt 0:00:26]} Re7 $1 {[%emt 0:07:57]} 26. h6 {[%emt 0:00:29]} gxh6 {[%emt 0:01:45]} 27. Nxf6+ {[%emt 0:00:16]} Kc6 {[%emt 0:00:04]} 28. Bc1 {[%emt 0:11:13]} Re6 {[%emt 0:13:14]} 29. Rh1 {[%emt 0:05:23]} Bf5 {[%emt 0:02:34]} 30. Ne4 $11 {[%emt 0:00:41]} Rg6 {[%emt 0:01:20]} 31. Bd2 {[%emt 0:02:01]} Be7 {[%emt 0:01:03]} 32. Kf2 {[%emt 0:02:47]} Bg4 {[%emt 0:01:03]} 1/2-1/2

[Event "BL 2016-17"]
[Site "Germany"]
[Date "2017.02.19"]
[Round "8"]
[White "Buckels, Valentin"]
[Black "Hoffmann, Paul"]
[Result "0-1"]
[ECO "E46"]
[WhiteElo "2300"]
[BlackElo "2373"]
[Annotator "TA RC"]
[PlyCount "82"]
[EventDate "2017.??.??"]
[EventType "team-tourn"]
[EventCountry "GER"]
[SourceTitle "playchess.com"]
[Source "ChessBase"]
[SourceQuality "1"]
[WhiteTeam "Mülheim Nord"]
[BlackTeam "TU Dresden"]
[TimeControl "40/6000+30:3000+30"]

1. d4 {[%emt 0:00:00]} Nf6 {[%emt 0:00:05]} 2. c4 {[%emt 0:00:00]} e6 {[%emt 0:00:06]} 3. Nc3 {[%emt 0:00:00]} Bb4 {[%emt 0:00:06]} 4. e3 {[%emt 0:00:00]} O-O {[%emt 0:00:24]} 5. Nge2 {[%emt 0:00:00]} d5 {[%emt 0:01:51]} 6. a3 {[%emt 0:00:00]} Be7 {[%emt 0:00:08]} 7. cxd5 {[%emt 0:00:38]} exd5 {[%emt 0:00:17]} 8. b4 {[%emt 0:00:14]} a5 {[%emt 0:01:03]} 9. b5 {[%emt 0:02:15]} Re8 {[%emt 0:03:50]} 10. Ng3 {[%emt 0:06:46]} c5 {[%emt 0:08:45]} 11. bxc6 {[%emt 0:08:00]} Nxc6 {[%emt 0:00:42]} 12. Be2 {[%emt 0:03:42]} g6 {[%emt 0:06:14]} 13. O-O {[%emt 0:02:01]} Bd6 {[%emt 0:01:55]} 14. Qb3 {[%emt 0:05:06]} h5 {[%emt 0:04:41]} 15. Bf3 {[%emt 0:08:40]} Be6 {[%emt 0:07:40]} 16. Qxb7 {[%emt 0:22:14]} Rc8 {[%emt 0:05:11]} 17. Bd2 {[%emt 0:01:43]} Re7 {[%emt 0:18:39]} 18. Qb3 {[%emt 0:07:30]} h4 {[%emt 0:15:44]} 19. Nge2 {[%emt 0:01:11]} g5 {[%emt 0:00:56]} 20. g3 {[%emt 0:04:49]} Kg7 {[%emt 0:06:44]} 21. Qb5 {[%emt 0:07:01]} Na7 {[%emt 0:08:44]} 22. Qd3 {[%emt 0:03:19]} Qd7 {[%emt 0:00:53]} 23. Bg2 {[%emt 0:08:47]} Bh3 {[%emt 0:05:41]} 24. f4 {[%emt 0:03:14]} Bxg2 {[%emt 0:05:23]} 25. Kxg2 {[%emt 0:03:54]} Rh8 {[%emt 0:00:08]} 26. f5 {[%emt 0:05:18]} Bb8 {[%emt 0:01:31]} 27. Qa6 {[%emt 0:01:05]} Rh6 {[%emt 0:03:31]} 28. Qxa5 {[%emt 0:01:06]} Nc6 {[%emt 0:00:04]} 29. Qb5 {[%emt 0:00:42]} Re8 {[%emt 0:00:50]} 30. e4 {[%emt 0:03:24]} hxg3 {[%emt 0:01:26]} 31. hxg3 {[%emt 0:00:39]} Reh8 {[%emt 0:00:42]} 32. Rh1 {[%emt 0:00:15]} Nxe4 {[%emt 0:01:27]} 33. Nxe4 {[%emt 0:00:32]} Qxf5 {[%emt 0:00:27]} 34. Nf2 {[%emt 0:00:22]} Rh2+ {[%emt 0:00:53]} 35. Rxh2 {[%emt 0:00:05]} Rxh2+ {[%emt 0:00:05]} 36. Kxh2 {[%emt 0:00:04]} Qxf2+ {[%emt 0:00:04]} 37. Kh3 {[%emt 0:03:09]} g4+ {[%emt 0:00:09]} 38. Kxg4 {[%emt 0:00:27]} Nxd4 {[%emt 0:00:22]} 39. Nxd4 Qxg3+ {[%emt 0:00:18]} 40. Kh5 {[%emt 0:00:52]} Qh3+ {[%emt 0:50:26]} 41. Kg5 {[%emt 0:50:03]} f6# {[%emt 0:00:11]} 0-1

[Event "BL 2016-17"]
[Site "St. Veit/Glan"]
[Date "2017.03.26"]
[Round "8"]
[White "Deglmann, Ludwig"]
[Black "Tober, Gerhard"]
[Result "1/2-1/2"]
[ECO "A53"]
[WhiteElo "2300"]
[BlackElo "2260"]
[Annotator "NA"]
[PlyCount "59"]
[EventDate "2017.??.??"]
[EventType "team-tourn"]
[EventCountry "AUT"]
[SourceTitle "playchess.com"]
[Source "ChessBase"]
[SourceQuality "1"]
[WhiteTeam "Absam"]
[BlackTeam "St. Valentin"]
[TimeControl "40/5400+30:1800+30"]

1. d4 {[%emt 0:00:00]} Nf6 {[%emt 0:00:30]} 2. c4 {[%emt 0:00:00]} d6 {[%emt 0:00:29]} 3. Nc3 {[%emt 0:00:42]} e5 {[%emt 0:00:19]} 4. d5 {[%emt 0:02:05]} c6 {[%emt 0:03:02]} 5. e4 {[%emt 0:01:32]} Be7 {[%emt 0:00:55]} 6. f3 {[%emt 0:07:47]} Na6 {[%emt 0:06:28]} 7. Be3 {[%emt 0:03:32]} Qa5 {[%emt 0:09:29]} 8. a3 {[%emt 0:15:02]} cxd5 {[%emt 0:08:14]} 9. cxd5 {[%emt 0:02:00]} Bd7 {[%emt 0:18:55]} 10. Bd3 {[%emt 0:15:19]} O-O {[%emt 0:02:05]} 11. b4 {[%emt 0:03:19]} Qd8 {[%emt 0:01:01]} 12. Nge2 {[%emt 0:01:11]} Nh5 {[%emt 0:05:21]} 13. Qd2 $14 {[%emt 0:07:09]} h6 {[%emt 0:04:28]} 14. g4 {[%emt 0:10:11]} Bh4+ {[%emt 0:04:15]} 15. Kf1 {[%emt 0:00:16]} Nf6 {[%emt 0:01:20]} 16. h3 {[%emt 0:03:02]} Nh7 {[%emt 0:01:42]} 17. Kg2 {[%emt 0:01:28]} Re8 {[%emt 0:07:06]} 18. Nb5 {[%emt 0:04:36]} Bxb5 {[%emt 0:03:45]} 19. Bxb5 {[%emt 0:02:26]} Re7 {[%emt 0:00:46]} 20. Bxa6 {[%emt 0:00:41]} bxa6 {[%emt 0:00:06]} 21. Rac1 {[%emt 0:00:12]} Nf8 {[%emt 0:09:14]} 22. Rc6 {[%emt 0:01:09]} a5 {[%emt 0:00:42]} 23. b5 {[%emt 0:01:51]} Ng6 {[%emt 0:01:03]} 24. Rb1 {[%emt 0:03:42]} Rd7 {[%emt 0:00:34]} 25. Qc3 {[%emt 0:00:59]} Bg5 {[%emt 0:00:48]} 26. Bf2 {[%emt 0:01:42]} Bh4 {[%emt 0:01:32]} 27. Be3 {[%emt 0:00:27]} Bg5 {[%emt 0:00:07]} 28. Bf2 {[%emt 0:02:07]} Bh4 {[%emt 0:00:01]} 29. Be3 {[%emt 0:04:11]} Bg5 30. Bf2 1/2-1/2

[Event "BL 2016-17"]
[Site "St. Veit/Glan"]
[Date "2017.03.26"]
[Round "8"]
[White "Hebesberger, Thomas"]
[Black "Kreisl, Robert"]
[Result "0-1"]
[ECO "A06"]
[WhiteElo "2299"]
[BlackElo "2426"]
[Annotator "ChessBase"]
[PlyCount "48"]
[EventDate "2017.??.??"]
[EventType "team-tourn"]
[EventCountry "AUT"]
[SourceTitle "playchess.com"]
[Source "ChessBase"]
[SourceQuality "1"]
[WhiteTeam "St. Veit"]
[BlackTeam "Maria Saal"]
[TimeControl "40/5400+30:1800+30"]

1. c4 {[%emt 0:00:00]} e6 {[%emt 0:00:38]} 2. Nf3 {[%emt 0:00:06]} d5 {[%emt 0:01:32]} 3. e3 {[%emt 0:00:11]} Nf6 {[%emt 0:00:05]} 4. b3 {[%emt 0:00:20]} c5 {[%emt 0:00:11]} 5. Bb2 {[%emt 0:00:10]} Nc6 {[%emt 0:00:04]} 6. cxd5 {[%emt 0:00:18]} exd5 {[%emt 0:00:05]} 7. Be2 {[%emt 0:00:06]} d4 {[%emt 0:11:21]} 8. Bb5 {[%emt 0:13:15]} dxe3 {[%emt 0:01:48]} 9. Bxc6+ {[%emt 0:04:38]} bxc6 {[%emt 0:00:18]} 10. dxe3 {[%emt 0:01:03]} Qxd1+ {[%emt 0:00:40]} 11. Kxd1 {[%emt 0:01:54]} Ne4 {[%emt 0:01:10]} 12. Ke1 {[%emt 0:02:08]} c4 {[%emt 0:02:40]} 13. Nfd2 {[%emt 0:11:45]} Bb4 {[%emt 0:18:28]} 14. a3 {[%emt 0:05:13]} Bxd2+ {[%emt 0:03:24]} 15. Nxd2 {[%emt 0:00:03]} Nxd2 {[%emt 0:00:08]} 16. Kxd2 {[%emt 0:01:09]} cxb3 {[%emt 0:00:08]} 17. Bxg7 {[%emt 0:01:19]} Rg8 {[%emt 0:00:42]} 18. Be5 {[%emt 0:08:13]} Bf5 {[%emt 0:02:54]} 19. Kc3 {[%emt 0:08:08]} Bc2 {[%emt 0:00:45]} 20. g3 {[%emt 0:06:29]} Ke7 {[%emt 0:01:12]} 21. Rac1 {[%emt 0:07:42]} Ke6 {[%emt 0:03:08]} 22. Bd4 {[%emt 0:00:40]} c5 {[%emt 0:00:35]} 23. Bxc5 {[%emt 0:00:46]} Rac8 {[%emt 0:00:08]} 24. Kb4 {[%emt 0:02:38]} a5+ {[%emt 0:00:08]} 0-1

[Event "BL 2016-17"]
[Site "Germany"]
[Date "2017.02.19"]
[Round "8"]
[White "Nothnagel, Holger"]
[Black "Sarbok, Torsten"]
[Result "1-0"]
[ECO "A13"]
[WhiteElo "2299"]
[BlackElo "2318"]
[Annotator "TA RC"]
[PlyCount "75"]
[EventDate "2017.??.??"]
[EventType "team-tourn"]
[EventCountry "GER"]
[SourceTitle "playchess.com"]
[Source "ChessBase"]
[SourceQuality "1"]
[WhiteTeam "Griesheim"]
[BlackTeam "König Tegel"]
[TimeControl "40/6000+30:3000+30"]

1. Nf3 {[%emt 0:00:00]} d5 {[%emt 0:00:44]} 2. c4 {[%emt 0:00:00]} e6 {[%emt 0:00:17]} 3. g3 {[%emt 0:00:50]} d4 {[%emt 0:11:01]} 4. Bg2 {[%emt 0:01:50]} c5 {[%emt 0:00:48]} 5. O-O {[%emt 0:00:40]} Nc6 {[%emt 0:00:18]} 6. e3 {[%emt 0:01:50]} Nf6 {[%emt 0:05:02]} 7. exd4 {[%emt 0:02:22]} cxd4 {[%emt 0:00:27]} 8. d3 {[%emt 0:00:37]} Be7 {[%emt 0:00:39]} 9. a3 {[%emt 0:04:28]} a5 {[%emt 0:00:42]} 10. Re1 {[%emt 0:07:05]} O-O {[%emt 0:00:46]} 11. Bf4 {[%emt 0:05:52]} Nd7 {[%emt 0:06:25]} 12. Ne5 {[%emt 0:30:22]} Ncxe5 {[%emt 0:14:18]} 13. Bxe5 {[%emt 0:00:08]} Nc5 {[%emt 0:00:31]} 14. Qc2 {[%emt 0:05:07]} f6 {[%emt 0:02:06]} 15. Bf4 {[%emt 0:00:19]} e5 {[%emt 0:00:19]} 16. Bc1 {[%emt 0:03:40]} Bf5 {[%emt 0:01:06]} 17. Bf1 {[%emt 0:07:14]} Qd7 {[%emt 0:15:58]} 18. Nd2 {[%emt 0:04:37]} Rfc8 {[%emt 0:01:07]} 19. Rb1 {[%emt 0:02:54]} a4 {[%emt 0:02:03]} 20. b4 {[%emt 0:12:54]} axb3 {[%emt 0:02:59]} 21. Nxb3 {[%emt 0:00:14]} b5 {[%emt 0:10:31]} 22. Nd2 {[%emt 0:04:58]} bxc4 {[%emt 0:15:10]} 23. Nxc4 {[%emt 0:00:09]} Na4 {[%emt 0:00:10]} 24. Bg2 {[%emt 0:02:39]} Ra7 {[%emt 0:00:21]} 25. Bd2 {[%emt 0:03:56]} Rac7 {[%emt 0:10:33]} 26. Rbc1 Kh8 {[%emt 0:03:01]} 27. Be4 {[%emt 0:05:14]} Be6 {[%emt 0:02:38]} 28. Ba5 {[%emt 0:00:28]} Ra7 {[%emt 0:00:36]} 29. Bb4 {[%emt 0:00:24]} Qd8 {[%emt 0:01:08]} 30. Qe2 {[%emt 0:01:27]} Bxb4 {[%emt 0:00:31]} 31. axb4 {[%emt 0:00:09]} Nc3 {[%emt 0:00:21]} 32. Qh5 {[%emt 0:00:21]} Nxe4 {[%emt 0:00:29]} 33. Rxe4 {[%emt 0:00:10]} Bf7 {[%emt 0:01:52]} 34. Qe2 {[%emt 0:01:22]} Rb7 {[%emt 0:00:18]} 35. f4 {[%emt 0:00:10]} Bd5 {[%emt 0:00:06]} 36. fxe5 {[%emt 0:00:04]} Bxe4 {[%emt 0:00:18]} 37. Qxe4 {[%emt 0:00:02]} fxe5 {[%emt 0:00:54]} 38. Qxb7 {[%emt 0:00:42]} 1-0